bitfinex/quotes_ETHUSD_20251023
["timestamp","ask_amount","ask_price","bid_price","bid_amount"]
[1761241890375,9.21382193,3928.5,3927.2,0.1272]
[1761241890376,3.355,3927.5,3927.2,0.1272]
[1761241890577,2.54627861,3927.3,3927.2,0.1272]
[1761241896612,2.54679448,3926.6,3926.3,0.002]
[1761241896812,2.54684402,3926.5,3926.3,0.002]
[1761241896994,2.54684402,3926.5,3926.4,0.4429]
[1761241897432,2.54686226,3926.4,3926.3,0.002]
[1761241898023,2.54680625,3926.5,3926.3,0.4449]
[1761241898499,3.354,3927.2,3926.3,0.4449]
[1761241898703,2.54686226,3926.4,3926.3,0.002]
[1761241899201,3.4535,3927.2,3926.3,0.002]
[1761241899202,3.354,3927.2,3926.3,0.4449]
[1761241899412,3.354,3927.2,3926.3,0.002]
[1761241899613,2.54686226,3926.4,3926.3,0.002]
[1761241899835,2.54681474,3926.5,3926.3,0.002]
[1761241900016,2.54674268,3926.6,3926.3,0.002]
[1761241900217,2.54682123,3926.5,3926.3,0.4449]
[1761241900425,3.354,3927.4,3926.3,0.4449]
[1761241900604,0.0995,3928.1,3926.3,0.4449]
[1761241900605,2.54658427,3926.9,3926.3,0.4449]
[1761241900807,2.54658427,3926.9,3926.4,0.13490834]
[1761241901101,2.54655914,3926.9,3926.4,0.13490834]
[1761241901331,2.54655914,3926.9,3926.5,0.4429]
[1761241901635,0.0995,3927.5,3926.3,0.002]
[1761241901811,2.54674275,3926.6,3926.3,0.002]
[1761241902326,2.54675017,3926.6,3926.4,0.4429]
[1761241902526,2.5467974,3926.5,3926.4,0.002]
[1761241908384,3.353,3926.8,3926.4,0.4449]
[1761241908566,2.5467974,3926.5,3926.4,0.5721]
[1761241908730,2.5467974,3926.5,3926.4,0.4449]
[1761241908931,2.5467974,3926.5,3926.4,0.5721]
[1761241909146,2.5467974,3926.5,3926.4,0.1292]
[1761241912567,2.5467974,3926.5,3926.4,0.5721]
[1761241912882,2.54660283,3926.8,3926.4,0.5721]
[1761241913083,0.001,3926.9,3926.5,0.4429]
[1761241913281,2.54754404,3926.9,3926.5,0.4429]
[1761241913576,2.54754404,3926.9,3926.8,0.1272]
[1761241913577,0.001,3926.9,3926.8,0.1272]
[1761241913781,2.54753798,3926.9,3926.8,0.1272]
[1761241914084,0.001,3926.9,3926.8,0.5701]
[1761241914950,2.54753798,3926.9,3926.8,0.5701]
[1761241915177,2.54753798,3926.9,3926.8,0.1272]
[1761241915953,2.54753798,3926.9,3926.8,0.5701]
[1761241917853,2.54753798,3926.9,3926.8,0.1272]
[1761241919071,2.54753798,3926.9,3926.5,0.4429]
[1761241919579,2.54755054,3926.9,3926.5,0.4429]
[1761241920370,0.001,3926.9,3926.5,0.6981]
[1761241920566,0.001,3926.9,3926.5,1.00481244]
[1761241920766,0.001,3926.9,3926.6,0.4412]
[1761241920981,2.54755946,3926.9,3926.6,0.4412]
[1761241921400,0.001,3926.9,3926.6,0.4412]
[1761241921603,2.5475427,3926.9,3926.6,0.4412]
[1761241921791,0.001,3926.9,3926.6,0.4412]
[1761241921998,0.001,3926.9,3926.6,0.94427959]
[1761241922493,0.001,3926.9,3926.7,0.4412]
[1761241922809,0.001,3926.9,3926.8,1.18056345]
[1761241922973,2.54666768,3926.7,3926.6,0.67426821]
[1761241923176,2.5467974,3926.5,3926.4,0.002]
[1761241927807,0.001,3926.9,3926.5,0.50688]
[1761241928105,0.001,3926.9,3926.8,1.1811417]
[1761241928304,0.001,3926.9,3926.8,0.63408]
[1761241928495,0.001,3926.9,3926.8,0.1272]
[1761241928692,0.001,3926.9,3926.8,3.4752]
[1761241929229,0.001,3926.9,3926.8,0.1272]
[1761241929719,0.001,3926.9,3926.8,0.5684]
[1761241930223,0.001,3926.9,3926.8,0.1272]
[1761241930804,2.54753798,3926.9,3926.8,0.1272]
[1761241932508,2.54753798,3926.9,3926.4,0.002]
[1761241932509,2.5467974,3926.5,3926.4,0.002]
[1761241932709,2.54686226,3926.4,3926.3,1e-08]
[1761241933436,2.64586226,3926.4,3926.3,1e-08]
[1761241935040,4.20106226,3926.4,3926.3,1e-08]
[1761241936047,14.02575657,3926.4,3926.3,1e-08]
[1761241936249,4.10232175,3926.0,3925.9,1e-08]
[1761241936416,7.44932175,3926.0,3925.9,1e-08]
[1761241936617,7.54832175,3926.0,3925.9,1e-08]
[1761241937020,10.73620175,3926.0,3925.9,1e-08]
[1761241937318,8.05520175,3926.0,3925.9,1e-08]
[1761241937835,8.05520175,3926.0,3924.9,1e-08]
[1761241937836,4.2295707,3925.0,3924.9,1e-08]
[1761241938035,7.6755707,3925.0,3924.9,1e-08]
[1761241939850,17.50026501,3925.0,3924.9,1e-08]
[1761241940949,17.50026501,3925.0,3924.3,0.002]
[1761241940950,2.54816022,3924.4,3924.3,1e-08]
[1761241941119,7.45036022,3924.4,3924.3,1e-08]
[1761241941319,7.68526022,3924.4,3924.3,1e-08]
[1761241941521,7.68526022,3924.4,3922.1,0.4412]
[1761241941522,2.54965452,3922.1,3922.0,0.2225]
[1761241942274,2.54991457,3921.7,3921.6,0.2225]
[1761241942651,2.54991457,3921.7,3921.6,0.3497]
[1761241943152,2.54991457,3921.7,3921.6,0.1272]
[1761241943464,2.55004462,3921.5,3921.4,0.2225]
[1761241944675,2.55004462,3921.5,3921.4,0.6637]
[1761241945266,2.55004462,3921.5,3921.4,0.2225]
[1761241945882,3.347,3922.1,3920.9,0.2225]
[1761241946086,3.347,3922.1,3921.3,0.2212]
[1761241946291,2.55009285,3921.5,3921.3,0.2212]
[1761241946454,1.5552,3922.5,3921.3,0.2212]
[1761241946455,0.1372,3923.0,3921.3,0.6642]
[1761241946654,0.0994,3923.6,3921.4,0.50688]
[1761241946848,2.54887467,3923.3,3921.6,0.50688]
[1761241947094,2.54952182,3922.4,3921.8,0.50688]
[1761241947387,2.54941692,3922.5,3921.8,0.50688]
[1761241947552,2.54946447,3922.4,3921.9,0.443]
[1761241947951,2.54946447,3922.4,3922.3,0.2212]
[1761241948273,3.347,3923.1,3922.3,0.2212]
[1761241948476,2.54940367,3922.5,3922.3,0.6642]
[1761241948970,2.54940367,3922.5,3922.4,0.4536]
[1761241950295,3.347,3923.4,3922.4,0.4536]
[1761241950651,2.54931616,3922.7,3922.4,0.4536]
[1761241951286,2.54934057,3922.6,3922.4,0.4536]
[1761241951759,2.54928694,3922.7,3922.4,0.4536]
[1761241952292,2.54934119,3922.6,3922.4,0.4536]
[1761241952701,2.54927342,3922.7,3922.4,0.4536]
[1761241953269,2.54927342,3922.7,3922.6,0.1272]
[1761241955457,2.55010965,3921.4,3921.3,0.6748]
[1761241955677,2.54939451,3922.5,3921.0,0.4536]
[1761241955678,2.55030476,3921.1,3921.0,0.4536]
[1761241955856,2.55025241,3921.2,3921.0,0.4536]
[1761241956065,2.55018108,3921.3,3920.9,0.2225]
[1761241956270,2.55025058,3921.2,3920.9,0.2225]
[1761241956567,2.55004436,3921.6,3920.9,0.6761]
[1761241956768,2.55004436,3921.6,3921.2,0.002]
[1761241956979,3.346,3922.1,3921.5,0.2154]
[1761241957182,2.5499796,3921.6,3921.5,0.2154]
[1761241957582,3.346,3922.1,3921.2,0.002]
[1761241957583,0.1275,3921.9,3921.2,0.002]
[1761241957790,2.55012524,3921.4,3921.2,0.002]
[1761241957984,2.55011873,3921.4,3921.2,0.002]
[1761241958185,2.6772984,3921.9,3921.2,0.002]
[1761241958399,2.55017468,3921.3,3921.2,0.002]
[1761241958598,3.346,3922.1,3921.2,0.002]
[1761241958599,1.5552,3922.0,3921.2,0.002]
[1761241958908,2.55009826,3921.5,3921.2,0.4556]
[1761241959106,2.55011929,3921.4,3921.2,0.4556]
[1761241960704,0.2255,3922.7,3921.2,0.4556]
[1761241961106,1.5552,3922.3,3921.2,0.4556]
[1761241961309,2.54984981,3921.8,3921.2,0.4556]
[1761241961495,1.5552,3922.5,3921.2,0.002]
[1761241961696,2.55005175,3921.5,3921.2,0.002]
[1761241962303,2.55011359,3921.4,3921.3,0.4536]
[1761241962611,2.54981932,3921.9,3921.3,0.4536]
[1761241963184,2.55007818,3921.5,3921.3,0.4536]
[1761241963383,2.55000368,3921.6,3921.3,0.4536]
[1761241963712,1.5552,3922.3,3921.3,0.4536]
[1761241963900,2.5499817,3921.6,3921.3,0.4536]
[1761241964095,2.54952641,3922.3,3921.3,0.4536]
[1761241964096,1.5552,3922.6,3921.3,0.4536]
[1761241964301,2.54991947,3921.7,3921.3,0.4536]
[1761241965297,2.54937669,3922.6,3921.4,0.50688]
[1761241965501,3.345,3922.8,3921.7,0.50688]
[1761241965704,2.54965253,3922.2,3921.7,0.50688]
[1761241965994,2.54967641,3922.1,3921.8,0.4536]
[1761241966196,2.54957912,3922.3,3922.1,0.1272]
[1761241966396,2.54959672,3922.2,3921.8,0.4536]
[1761241966704,2.54946192,3922.4,3922.2,0.1272]
[1761241966905,2.54982592,3921.9,3921.2,1.1831417]
[1761241967107,2.54974222,3922.0,3921.8,0.4536]
[1761241967290,2.54974222,3922.0,3921.8,0.5808]
[1761241967492,2.54967848,3922.1,3921.8,0.5808]
[1761241967719,2.54974056,3922.0,3921.8,0.5808]
[1761241968023,2.54973239,3922.0,3921.7,0.4536]
[1761241968207,2.54973239,3922.0,3921.9,0.1272]
[1761241970635,2.54958982,3922.2,3921.2,0.6762617]
[1761241970636,2.54965386,3922.2,3921.2,0.6762617]
[1761241970837,2.64780353,3923.5,3922.1,0.2154]
[1761241970838,2.54913456,3922.9,3922.1,0.2154]
[1761241971139,3.344,3923.3,3922.1,0.2154]
[1761241971140,3.443,3923.3,3922.1,0.2154]
[1761241971348,0.90234144,3924.0,3922.2,0.96048]
[1761241971349,3.4808,3924.0,3922.2,0.96048]
[1761241971623,3.4808,3924.0,3922.1,0.8896617]
[1761241971624,2.54895728,3923.2,3922.4,0.50688]
[1761241971811,2.54902276,3923.1,3922.5,0.16347417]
[1761241972125,2.54902276,3923.1,3922.5,1.29133587]
[1761241972359,4.10368492,3923.9,3922.5,1.29133587]
[1761241972641,2.549118,3923.0,3922.6,0.4536]
[1761241973738,2.54881353,3923.4,3922.6,0.4536]
[1761241973927,0.1361,3922.7,3922.4,0.6742617]
[1761241974128,2.54927101,3922.7,3922.4,0.4536]
[1761241974325,3.344,3923.5,3922.4,0.4536]
[1761241974507,2.5492478,3922.8,3922.4,0.4536]
[1761241975327,1.5552,3923.5,3922.4,0.4536]
[1761241975848,2.54919651,3922.9,3922.4,0.4536]
[1761241976251,2.54920357,3922.8,3922.4,0.4536]
[1761241976938,2.54913528,3922.9,3922.4,0.4536]
[1761241977315,2.54931499,3922.7,3922.4,0.4536]
[1761241978321,2.54893976,3923.2,3922.4,0.4536]
[1761241978518,2.54893976,3923.2,3922.3,3.343]
[1761241978716,1.5552,3923.5,3922.3,0.4332]
[1761241978929,2.54940207,3922.5,3922.3,0.4332]
[1761241979238,2.54934144,3922.6,3922.3,0.4332]
[1761241979539,2.5494116,3922.5,3922.3,0.4332]
[1761241979741,2.54945951,3922.4,3922.3,0.4332]
[1761241980668,2.54961078,3922.2,3922.0,0.4332]
[1761241980972,2.54961078,3922.2,3921.8,0.6742617]
[1761241980973,2.54978454,3921.9,3921.8,4.4494617]
[1761241981352,2.54978454,3921.9,3921.8,0.5604]
[1761241981546,0.2626,3922.9,3921.9,0.50688]
[1761241981751,0.1354,3922.9,3922.0,0.1272]
[1761241981946,2.68453456,3922.9,3922.8,0.1272]
[1761241982467,2.54978454,3921.9,3921.8,3.342]
[1761241982651,2.54975569,3922.0,3921.8,3.9024]
[1761241982972,2.54975569,3922.0,3921.9,0.4332]
[1761241983270,2.54975569,3922.0,3921.9,0.1272]
[1761241983469,2.54991457,3921.7,3921.6,0.6742617]
[1761241983685,2.54991457,3921.7,3921.6,3.342]
[1761241984139,0.001,3924.1,3921.7,0.50688]
[1761241984341,2.68459426,3922.9,3921.9,0.50688]
[1761241984580,2.54958932,3922.3,3921.9,0.50688]
[1761241984750,2.54948298,3922.4,3921.9,0.50688]
[1761241985253,2.54954852,3922.3,3921.9,0.94008]
[1761241985455,2.54947371,3922.4,3921.9,0.94008]
[1761241985772,2.54932601,3922.7,3922.0,0.64387357]
[1761241985773,2.54940074,3922.5,3922.0,0.64387357]
[1761241986177,2.54946504,3922.4,3922.1,0.6662]
[1761241986689,4.24061802,3923.3,3922.2,0.94008]
[1761241986851,2.54935832,3922.6,3922.2,0.94008]
[1761241987340,2.54935832,3922.6,3922.4,0.50688]
[1761241987545,2.54939451,3922.5,3922.4,0.50688]
[1761241988042,2.5493464,3922.6,3922.4,0.50688]
[1761241988691,2.5493464,3922.6,3922.4,3.7742]
[1761241989049,2.54939451,3922.5,3922.4,4.28108]
[1761241989447,2.54939451,3922.5,3922.4,3.84788]
[1761241990666,2.54939451,3922.5,3922.4,0.50688]
[1761241990866,2.54958951,3922.2,3922.1,0.233]
[1761241991085,2.54958951,3922.2,3922.1,3.34]
[1761241991248,2.54978454,3921.9,3921.5,0.67282148]
[1761241991454,2.54971953,3922.0,3921.9,0.002]
[1761241991777,2.54971731,3922.1,3921.9,0.002]
[1761241992080,2.54924182,3922.8,3921.9,0.002]
[1761241992279,2.54969733,3922.1,3921.9,0.002]
[1761241992997,2.54909618,3923.0,3922.1,0.50688]
[1761241994058,1.5552,3923.7,3922.6,0.1272]
[1761241994266,2.5491808,3922.9,3922.5,0.4332]
[1761241994468,2.5491584,3922.9,3922.5,0.4332]
[1761241994658,2.5491584,3922.9,3922.8,0.1272]
[1761241995075,3.34,3923.8,3922.8,3.8994]
[1761241995384,2.54898229,3923.2,3922.8,3.8994]
[1761241995680,3.34,3923.8,3922.8,3.8994]
[1761241995681,2.54900796,3923.1,3922.9,0.38994]
[1761241995881,2.54900796,3923.1,3923.0,0.1272]
[1761241996074,5.98798393,3923.8,3923.0,0.1272]
[1761241996451,5.98798393,3923.8,3923.7,0.1272]
[1761241997289,2.64798393,3923.8,3923.7,0.1272]
[1761241997783,2.54906958,3923.0,3922.9,3.339]
[1761241998288,2.54906958,3923.0,3922.9,3.4662]
[1761241998903,2.54902255,3923.1,3922.9,3.4662]
[1761241999605,2.54902255,3923.1,3922.9,3.8994]
[1761241999953,2.54895493,3923.2,3922.9,3.4662]
[1761242000188,2.54895493,3923.2,3923.0,0.4332]
[1761242000359,2.5489297,3923.3,3923.1,0.1272]
[1761242000554,2.54891027,3923.3,3923.1,0.1272]
[1761242000758,0.001,3924.1,3923.2,0.6662]
[1761242001056,0.001,3924.1,3923.2,1.7730568]
[1761242001365,0.001,3924.1,3923.2,0.6662]
[1761242001366,2.54879713,3923.5,3923.2,0.6662]
[1761242001583,2.54879713,3923.5,3923.4,0.1272]
[1761242003167,0.1361,3923.9,3923.4,0.1272]
[1761242003490,2.54841997,3924.0,3923.5,3.337]
[1761242003677,2.54862372,3923.7,3923.5,3.337]
[1761242003871,0.001,3924.1,3923.5,3.337]
[1761242003872,2.54854987,3923.8,3923.5,3.337]
[1761242004071,2.54854987,3923.8,3923.6,0.1272]
[1761242004266,2.54865995,3923.7,3923.6,0.1272]
[1761242004689,0.001,3924.1,3923.6,0.1272]
[1761242004882,2.54848492,3923.9,3923.6,0.1272]
[1761242005086,2.54936208,3924.1,3924.0,0.1272]
[1761242005391,0.001,3924.1,3924.0,3.337]
[1761242005574,0.001,3924.1,3924.0,3.8974]
[1761242006864,0.001,3924.1,3924.0,4.27708]
[1761242007081,0.001,3924.1,3924.0,4.755476]
[1761242007472,0.001,3924.1,3924.0,6.9809928]
[1761242009291,0.001,3924.1,3924.0,6.9789928]
[1761242009478,0.001,3924.1,3924.0,6.308676]
[1761242010298,0.001,3924.1,3924.0,6.9789928]
[1761242011990,0.001,3924.1,3924.0,2.973676]
[1761242012396,0.001,3924.1,3924.0,6.307676]
[1761242012603,0.001,3924.1,3924.0,2.973676]
[1761242012891,0.001,3924.1,3924.0,6.307676]
[1761242013823,0.001,3924.1,3924.0,2.973676]
[1761242014011,0.001,3924.1,3924.0,6.307676]
[1761242014602,0.001,3924.1,3924.0,2.973676]
[1761242014804,0.001,3924.1,3924.0,6.307676]
[1761242016307,0.001,3924.1,3924.0,6.29486002]
[1761242017016,0.001,3924.1,3924.0,6.42206002]
[1761242019654,0.001,3924.1,3924.0,6.432676]
[1761242022158,0.001,3924.1,3924.0,3.100676]
[1761242022324,0.001,3924.1,3924.0,6.432676]
[1761242025241,0.001,3924.1,3924.0,7.1029928]
[1761242025691,0.001,3924.1,3924.0,0.63408]
[1761242025985,2.54935503,3924.1,3924.0,3.96508]
[1761242026142,0.001,3924.1,3924.0,0.63408]
[1761242026349,0.001,3924.1,3924.0,3.96508]
[1761242026779,0.001,3924.1,3924.0,3.96408]
[1761242026983,0.001,3924.1,3924.0,4.86051968]
[1761242027278,0.001,3924.1,3924.0,0.63408]
[1761242027582,0.001,3924.1,3924.0,0.63608]
[1761242027784,0.001,3924.1,3924.0,3.96608]
[1761242029395,2.54935503,3924.1,3924.0,0.002]
[1761242029541,2.64835503,3924.1,3924.0,3.332]
[1761242030075,2.64835503,3924.1,3924.0,0.002]
[1761242031347,4.20355503,3924.1,3924.0,0.002]
[1761242031982,2.54874474,3923.5,3923.4,0.002]
[1761242032386,2.64774474,3923.5,3923.4,0.002]
[1761242033687,2.55069506,3920.5,3919.9,3.14975683]
[1761242033997,2.55069506,3920.5,3919.8,0.002]
[1761242033998,0.1513,3920.5,3919.8,0.002]
[1761242034191,2.55089026,3920.2,3919.8,0.13512484]
[1761242034394,0.1513,3920.5,3919.8,0.13512484]
[1761242034687,0.10212066,3920.9,3920.4,0.2363]
[1761242034890,2.5504366,3920.9,3920.4,0.64043]
[1761242035055,0.2262,3921.6,3920.5,3.372]
[1761242035056,2.55050513,3920.8,3920.5,3.372]
[1761242035387,2.55055703,3920.8,3920.5,3.372]
[1761242035684,2.55044377,3920.9,3920.5,3.372]
[1761242035845,2.55050956,3920.8,3920.5,3.372]
[1761242037157,2.55050956,3920.8,3920.0,0.50688]
[1761242037376,2.55037307,3921.0,3920.2,1.148]
[1761242037574,2.55082519,3920.3,3920.2,1.148]
[1761242037744,2.5507729,3920.4,3920.2,1.148]
[1761242038278,2.55070584,3920.5,3920.2,1.581]
[1761242039140,2.55031391,3921.1,3920.3,0.4319]
[1761242039341,2.55050039,3920.8,3920.3,0.4319]
[1761242039545,0.099,3921.5,3920.3,0.4319]
[1761242039546,2.55046768,3920.9,3920.3,0.4319]
[1761242039865,2.55046768,3920.9,3920.7,0.1272]
[1761242040495,0.099,3921.5,3920.7,0.1272]
[1761242040683,2.55043586,3920.9,3920.8,0.1272]
[1761242040890,2.55043586,3920.9,3920.4,0.50688]
[1761242041198,2.55043586,3920.9,3920.8,0.1272]
[1761242045597,2.55089026,3920.2,3920.1,0.002]
[1761242048792,0.2205,3917.9,3915.7,1.34257565]
[1761242048990,0.2205,3917.9,3914.7,0.002]
[1761242048991,9.96488302,3915.8,3914.7,0.002]
[1761242049320,2.55414793,3915.2,3914.7,0.002]
[1761242049518,2.55414793,3915.2,3914.8,0.13328265]
[1761242049819,2.55414793,3915.2,3914.7,0.002]
[1761242050116,0.33525622,3915.7,3914.7,0.002]
[1761242050303,0.33525622,3915.7,3915.1,0.2188]
[1761242050508,0.2205,3916.2,3915.1,0.2188]
[1761242050704,0.4327,3916.1,3915.1,0.6507]
[1761242050910,0.2205,3916.2,3915.3,0.50688]
[1761242051116,2.55368715,3916.0,3915.4,0.217158]
[1761242051521,2.55369371,3915.9,3915.4,0.217158]
[1761242052016,0.97814866,3916.4,3915.4,0.217158]
[1761242052188,2.55364079,3916.0,3915.4,0.217158]
[1761242052391,2.55355053,3916.2,3915.4,0.217158]
[1761242052716,2.55350782,3916.2,3915.5,0.1738038]
[1761242053117,0.2204,3916.5,3915.5,0.1738038]
[1761242053418,2.55358517,3916.1,3915.5,0.1738038]
[1761242053725,2.55362801,3916.0,3915.5,0.1738038]
[1761242053894,2.77375995,3916.5,3915.5,0.1738038]
[1761242054291,2.5535739,3916.1,3915.5,0.1738038]
[1761242054515,2.55348803,3916.3,3915.5,0.1738038]
[1761242054690,2.55336533,3916.4,3915.5,0.1738038]
[1761242055055,2.55366059,3916.0,3915.5,0.1738038]
[1761242055255,2.55364365,3916.0,3915.3,0.50688]
[1761242055430,2.55368197,3916.0,3915.9,0.128]
[1761242056477,2.55316006,3916.8,3915.9,0.128]
[1761242056621,2.55277869,3917.3,3915.9,0.4319]
[1761242056818,3.43374899,3917.4,3916.0,0.53241626]
[1761242057135,0.1144,3917.4,3916.0,0.50688]
[1761242057331,2.55271859,3917.4,3916.2,0.50688]
[1761242057525,2.55270162,3917.5,3916.2,0.50688]
[1761242057864,2.55278185,3917.3,3916.4,0.50688]
[1761242058081,0.2087,3917.8,3916.5,3.496]
[1761242058371,0.2087,3917.8,3916.6,0.443478]
[1761242058744,2.55297935,3917.0,3916.6,0.443478]
[1761242059148,0.2087,3917.8,3916.6,0.875378]
[1761242059329,2.5527949,3917.3,3916.6,0.875378]
[1761242059525,0.2087,3917.8,3916.7,0.93878]
[1761242059756,2.55267164,3917.5,3916.9,0.50688]
[1761242059968,0.2087,3917.8,3916.8,0.4878258]
[1761242060261,0.2087,3917.8,3916.8,0.50688]
[1761242060434,2.55278984,3917.3,3916.8,0.50688]
[1761242060637,2.55284673,3917.2,3916.8,0.50688]
[1761242060830,2.55293474,3917.1,3916.8,0.50688]
[1761242061035,2.55295509,3917.1,3916.2,0.93878]
[1761242061264,2.55264837,3917.5,3916.2,0.93878]
[1761242061455,2.55264837,3917.5,3916.4,0.50688]
[1761242061659,2.5531493,3916.8,3916.4,2.06208]
[1761242061860,2.5531493,3916.8,3916.4,2.660226]
[1761242062159,2.5531493,3916.8,3916.4,2.228326]
[1761242062160,2.55310962,3916.8,3916.4,2.228326]
[1761242062588,2.55310962,3916.8,3916.5,0.4319]
[1761242062939,0.2087,3917.5,3916.5,0.4319]
[1761242062940,0.2087,3917.5,3916.6,3.488]
[1761242063277,2.55299065,3917.0,3916.6,3.488]
[1761242063464,2.55316976,3916.7,3916.6,3.488]
[1761242063643,2.55311777,3916.8,3916.6,3.488]
[1761242064544,2.55305661,3916.9,3916.6,3.488]
[1761242064744,2.55311269,3916.8,3916.6,3.488]
[1761242065180,2.55305288,3916.9,3916.6,3.488]
[1761242065770,2.55310901,3916.8,3916.6,3.488]
[1761242066157,2.55275152,3917.4,3916.6,3.488]
[1761242066481,2.55316134,3916.8,3916.6,3.488]
[1761242066981,2.55316134,3916.8,3916.7,0.128]
[1761242068586,2.55323494,3916.6,3916.5,0.002]
[1761242068951,2.76203494,3916.6,3916.5,0.002]
[1761242071382,3.30590586,3916.6,3916.5,0.002]
[1761242072091,4.86110586,3916.6,3916.5,0.002]
[1761242072291,2.55375657,3915.8,3915.1,0.002]
[1761242072691,3.30719509,3915.8,3915.1,0.002]
[1761242073393,6.78519509,3915.8,3915.1,0.002]
[1761242073592,8.34039509,3915.8,3915.1,0.002]
[1761242074292,9.25288926,3915.8,3915.1,0.002]
[1761242075396,4.86239509,3915.8,3915.1,0.002]
[1761242076387,5.77227829,3915.8,3915.1,0.002]
[1761242077365,4.86239509,3915.8,3915.1,0.002]
[1761242078206,4.96465411,3915.8,3915.1,0.002]
[1761242078571,5.09265411,3915.8,3915.3,0.128]
[1761242079082,4.96465411,3915.8,3915.5,0.128]
[1761242079986,4.96465411,3915.8,3915.1,0.002]
[1761242080304,4.99039509,3915.8,3915.2,0.128]
[1761242081103,8.46139509,3915.8,3915.2,0.128]
[1761242081404,4.86239509,3915.8,3915.1,0.002]
[1761242081584,5.56584835,3915.8,3915.1,0.002]
[1761242081903,3.09809509,3915.8,3915.6,0.002]
[1761242083492,3.78234538,3915.8,3915.6,0.002]
[1761242083882,3.09809509,3915.8,3915.6,0.002]
[1761242084100,0.54433852,3915.8,3915.7,0.4352]
[1761242084301,2.55375657,3915.8,3915.7,0.683208]
[1761242084505,2.55375657,3915.8,3915.7,0.002]
[1761242084684,3.10108728,3915.8,3915.7,0.002]
[1761242085499,3.10108728,3915.8,3915.7,0.4352]
[1761242086108,2.55375657,3915.8,3915.7,0.002]
[1761242087678,2.55375657,3915.8,3915.7,0.4352]
[1761242089628,2.55375657,3915.8,3915.7,0.002]
[1761242091499,2.55375657,3915.8,3915.7,0.13]
[1761242093703,2.55375657,3915.8,3915.7,0.5632]
[1761242094299,0.001,3916.1,3915.8,0.50688]
[1761242094587,0.001,3916.1,3915.8,0.94008]
[1761242094788,0.001,3916.1,3916.0,0.50688]
[1761242095190,0.001,3916.1,3916.0,0.4332]
[1761242098691,0.001,3916.1,3916.0,0.94008]
[1761242100618,0.001,3916.1,3915.7,0.002]
[1761242100818,2.55375657,3915.8,3915.7,0.002]
[1761242101353,2.55375657,3915.8,3915.7,0.634]
[1761242101854,0.001,3916.1,3915.7,1.0807]
[1761242102215,2.55375657,3915.8,3915.7,0.634]
[1761242103432,0.001,3916.1,3915.7,0.634]
[1761242103633,2.55374451,3915.9,3915.8,0.4467]
[1761242103846,2.55364204,3916.0,3915.8,0.4467]
[1761242104028,2.55375657,3915.8,3915.7,0.634]
[1761242104334,2.55375657,3915.8,3915.7,0.002]
[1761242104540,2.55375657,3915.8,3915.7,0.13]
[1761242104743,2.87125657,3915.8,3915.7,0.13]
[1761242104949,2.55375657,3915.8,3915.7,0.13]
[1761242105720,2.55375657,3915.8,3915.7,0.5767]
[1761242106139,2.55362614,3916.0,3915.7,0.5767]
[1761242106341,0.001,3916.1,3915.7,0.5767]
[1761242106342,0.001,3916.1,3915.9,0.128]
[1761242106541,2.55362614,3916.0,3915.9,0.128]
[1761242107672,2.55362614,3916.0,3915.9,0.5747]
[1761242107983,0.001,3916.1,3915.9,0.5747]
[1761242108142,0.001,3916.1,3916.0,0.95358]
[1761242109151,0.001,3916.1,3916.0,1.08158]
[1761242110980,0.001,3916.9,3916.6,2.06208]
[1761242111176,0.001,3916.9,3916.4,0.2164]
[1761242111177,0.001,3916.9,3916.8,2.06208]
[1761242111345,0.001,3916.9,3916.8,2.19008]
[1761242111541,0.001,3916.9,3916.8,2.63678]
[1761242113362,0.001,3916.9,3916.8,5.18988457]
[1761242113674,0.001,3916.9,3916.8,2.63678]
[1761242113973,0.001,3916.9,3916.8,3.91073171]
[1761242116060,0.001,3916.9,3916.8,6.46383628]
[1761242117177,0.2208,3919.0,3917.4,2.06208]
[1761242117355,0.2208,3919.0,3918.9,0.1272]
[1761242117560,0.2208,3919.0,3918.9,3.411]
[1761242118788,2.77247134,3919.0,3918.9,3.411]
[1761242119288,0.0993,3919.3,3918.9,3.411]
[1761242119491,2.55167134,3919.0,3917.9,1.5552]
[1761242119691,0.1288,3920.2,3918.0,2.39152]
[1761242119692,0.1005,3919.2,3918.0,2.39152]
[1761242119990,2.55192009,3918.7,3918.0,2.236]
[1761242120190,2.55181522,3918.8,3918.0,2.236]
[1761242120391,2.55187779,3918.7,3918.0,2.236]
[1761242120573,0.3178,3919.1,3918.1,2.50878]
[1761242120893,2.55167134,3919.0,3918.2,0.474478]
[1761242121094,2.55179349,3918.9,3918.2,0.474478]
[1761242122266,2.55165895,3919.1,3918.3,0.50688]
[1761242122589,2.55154873,3919.2,3918.3,0.50688]
[1761242122795,0.099,3919.1,3918.4,0.2983258]
[1761242123092,2.55178906,3918.9,3918.4,0.2983258]
[1761242123772,2.55165968,3919.1,3918.5,0.4467]
[1761242123974,2.55167801,3919.0,3918.6,3.404]
[1761242125392,2.55169078,3919.0,3918.6,3.404]
[1761242125565,2.55169078,3919.0,3918.6,3.82492058]
[1761242126164,2.55185526,3918.8,3918.4,0.2983258]
[1761242126409,2.55198388,3918.6,3917.6,0.50688]
[1761242126608,0.1022,3919.9,3918.6,1.5552]
[1761242126803,2.55167219,3919.0,3918.7,3.4]
[1761242127108,2.55173645,3918.9,3918.8,3.402]
[1761242127592,2.87173645,3918.9,3918.8,3.5292]
[1761242128095,2.87173645,3918.9,3918.8,0.1272]
[1761242128314,0.2178,3918.9,3918.8,3.5292]
[1761242128513,2.5515693,3919.2,3918.8,3.75492]
[1761242128805,2.55171787,3919.0,3918.8,3.402]
[1761242130316,0.1033,3919.5,3918.8,3.402]